bitfinex-derivatives/quotes_ETHF0:USTF0_20240913
["timestamp","ask_amount","ask_price","bid_price","bid_amount"]
[1726210049505,1.96696,2342.0,2341.9,1.33978953]
[1726210049705,1.96696,2342.0,2341.9,0.91280953]
[1726210049914,1.96696,2342.0,2341.9,1.33978953]
[1726210051108,3.03437,2342.0,2341.9,0.91280953]
[1726210052212,3.03437,2342.0,2341.9,1.33978953]
[1726210053121,3.03437,2342.0,2341.9,0.91280953]
[1726210055425,3.03437,2342.0,2341.9,1.33978953]
[1726210056922,1.96696,2342.0,2341.9,1.33978953]
[1726210058125,5.17476,2342.0,2341.9,1.33978953]
[1726210060225,5.17476,2342.0,2341.9,0.91280953]
[1726210061028,5.17476,2342.0,2341.9,1.33978953]
[1726210061424,5.17476,2342.0,2341.9,0.53060953]
[1726210061730,5.17476,2342.0,2341.5,0.4089]
[1726210061731,0.42703,2341.7,2341.5,0.4089]
[1726210062035,0.42703,2341.6,2341.5,1.61424]
[1726210062217,1.96703,2341.6,2341.5,1.61424]
[1726210062421,1.96703,2341.6,2341.5,2.14484953]
[1726210063425,1.96703,2341.6,2341.5,2.14485953]
[1726210063627,2.33993,2341.6,2341.5,2.14485953]
[1726210063930,2.33993,2341.6,2341.5,0.95765953]
[1726210068535,0.42702,2341.7,2341.6,0.42703]
[1726210068731,1.96702,2341.7,2341.6,0.95763953]
[1726210071136,6.24236,2341.7,2341.6,0.53060953]
[1726210071536,8.46029002,2341.7,2341.6,0.53060953]
[1726210072738,8.46029002,2341.7,2341.6,0.93440953]
[1726210073434,8.46029002,2341.7,2341.6,1.36143953]
[1726210073843,8.46029002,2341.7,2341.6,0.93440953]
[1726210074646,7.39275002,2341.7,2341.6,1.36143953]
[1726210074839,5.17482,2341.7,2341.6,1.36143953]
[1726210075237,7.39275002,2341.7,2341.6,0.93440953]
[1726210077544,7.39275002,2341.7,2341.6,1.36143953]
[1726210077745,2.21793002,2341.7,2341.6,1.36143953]
[1726210077944,2.21793002,2341.8,2341.7,0.42701]
[1726210078246,2.21793002,2341.8,2341.7,1.71541953]
[1726210079249,2.64493002,2341.8,2341.7,1.71541953]
[1726210079851,2.21793002,2341.8,2341.7,4.92321953]
[1726210080050,0.099,2342.1,2342.0,0.42696]
[1726210080051,2.31693002,2342.1,2342.0,0.42696]
[1726210080352,0.36813002,2342.4,2342.3,0.4269]
[1726210080646,1.54,2342.5,2342.4,0.42688]
[1726210080851,1.54,2342.5,2342.3,0.42689]
[1726210081153,1.54,2342.5,2342.4,0.53060953]
[1726210081458,1.54,2342.5,2342.4,0.95749953]
[1726210082345,1.54,2342.5,2342.4,0.53060953]
[1726210084160,1.54,2342.5,2342.4,0.95749953]
[1726210084455,1.96687,2342.5,2342.4,0.53060953]
[1726210084656,2.35017,2342.5,2342.4,0.53060953]
[1726210093355,2.35017,2342.5,2342.4,0.95749953]
[1726210095052,3.41735,2342.5,2342.4,0.53060953]
[1726210098458,2.35017,2342.5,2342.4,0.95749953]
[1726210101259,2.35017,2342.5,2342.4,0.53060953]
[1726210101869,2.35017,2342.5,2342.4,0.95749953]
[1726210102558,3.41735,2342.5,2342.4,0.53060953]
[1726210104871,0.42689,2342.4,2342.3,0.4269]
[1726210105063,0.42694,2342.1,2342.0,1.19963]
[1726210105266,1.96694,2342.1,2342.0,1.19963]
[1726210105472,1.96694,2342.1,2342.0,1.73023953]
[1726210111969,1.96694,2342.1,2342.0,0.95753953]
[1726210112172,2.34684,2342.1,2342.0,0.95753953]
[1726210114783,3.4142,2342.1,2342.0,0.53060953]
[1726210114975,4.48156,2342.1,2342.0,0.53060953]
[1726210117194,3.4142,2342.1,2342.0,0.53060953]
[1726210117902,3.0343,2342.1,2342.0,0.53060953]
[1726210118490,3.0343,2342.1,2342.0,0.93230953]
[1726210120602,5.25275497,2342.1,2342.0,0.53060953]
[1726210120906,3.71275497,2342.1,2342.0,0.53060953]
[1726210121107,5.25275497,2342.1,2342.0,0.53060953]
[1726210122900,5.25601369,2342.1,2342.0,0.53060953]
[1726210123305,3.0343,2342.1,2342.0,0.53060953]
[1726210124194,5.25650083,2342.1,2342.0,0.53060953]
[1726210124397,5.25677229,2342.1,2342.0,0.53060953]
[1726210124604,5.25675914,2342.1,2342.0,0.53060953]
[1726210125304,3.0343,2342.1,2342.0,0.53060953]
[1726210126200,5.80623948,2342.1,2342.0,0.53060953]
[1726210126506,3.0343,2342.1,2342.0,0.53060953]
[1726210127610,5.80623948,2342.1,2342.0,0.53060953]
[1726210128205,3.0343,2342.1,2342.0,0.53060953]
[1726210129503,5.25700344,2342.1,2342.0,0.53060953]
[1726210129705,3.0343,2342.1,2342.0,0.53060953]
[1726210129905,4.18971181,2342.1,2342.0,0.95756953]
[1726210130101,1.96694,2342.1,2342.0,0.53060953]
[1726210130400,4.18978076,2342.1,2342.0,0.53060953]
[1726210130602,1.96694,2342.1,2342.0,0.53060953]
[1726210132411,4.18984101,2342.1,2342.0,0.53060953]
[1726210132609,4.18985497,2342.1,2342.0,0.53060953]
[1726210132813,1.96694,2342.1,2342.0,0.53060953]
[1726210134416,1.96694,2342.1,2342.0,0.95756953]
[1726210134618,1.96694,2342.1,2342.0,0.53060953]
[1726210134913,1.96694,2342.1,2341.8,0.3985]
[1726210135114,2.64992717,2342.0,2341.9,0.42696]
[1726210135412,0.42697,2342.0,2341.9,0.42696]
[1726210135610,2.22295717,2342.0,2341.9,0.95756953]
[1726210135819,1.54,2342.1,2342.0,0.42696]
[1726210136117,1.96694,2342.1,2342.0,0.95756953]
[1726210136319,4.18989717,2342.1,2342.0,0.95756953]
[1726210142522,1.96694,2342.1,2342.0,0.95756953]
[1726210142927,1.96694,2342.1,2342.0,0.53060953]
[1726210143125,5.80623948,2342.1,2342.0,0.53060953]
[1726210145127,5.81626879,2342.1,2342.0,0.53060953]
[1726210145328,3.0343,2342.1,2342.0,0.53060953]
[1726210145520,5.81656764,2342.1,2342.0,0.53060953]
[1726210145829,3.0343,2342.1,2342.0,0.53060953]
[1726210148631,1.06741,2342.0,2341.7,0.427]
[1726210148841,1.06741,2342.0,2341.6,1.49630749]
[1726210148842,2.6534712,2341.8,2341.6,1.49630749]
[1726210149027,1.96701,2341.7,2341.6,0.80432]
[1726210149330,4.5955812,2341.7,2341.6,0.80432]
[1726210149537,4.5955812,2341.7,2341.6,1.33492953]
[1726210150326,4.5955812,2341.7,2341.6,0.90790953]
[1726210150638,6.219739,2341.7,2341.6,0.53060953]
[1726210152131,3.43665,2341.7,2341.6,0.53060953]
[1726210152435,6.21972656,2341.7,2341.6,0.53060953]
[1726210155128,10.06311656,2341.7,2341.4,0.42706]
[1726210155333,1.54,2341.5,2341.4,0.95766953]
[1726210156039,1.54,2341.5,2341.4,0.95767953]
[1726210156040,1.96706,2341.5,2341.4,0.95767953]
[1726210156229,4.19201034,2341.5,2341.4,0.95767953]
[1726210156432,1.96706,2341.5,2341.4,0.95767953]
[1726210162443,2.37026,2341.5,2341.4,0.95767953]
[1726210166244,2.37026,2341.5,2341.4,0.53060953]
[1726210166245,5.66284034,2341.5,2341.4,0.53060953]
[1726210166939,5.66284034,2341.5,2341.4,0.95767953]
[1726210167444,4.59521034,2341.5,2341.4,0.95767953]
[1726210168038,2.37026,2341.5,2341.4,0.95767953]
[1726210168241,4.59521034,2341.5,2341.4,0.53060953]
[1726210169946,2.37026,2341.5,2341.4,0.53060953]
[1726210170340,1.96706,2341.5,2341.4,0.91880953]
[1726210170540,1.96706,2341.5,2341.4,1.68770953]
[1726210171356,3.03469,2341.5,2341.4,1.68770953]
[1726210171542,8.46321034,2341.5,2340.7,5.53438022]
[1726210171742,5.77045,2341.2,2341.1,0.7872]
[1726210171946,6.92763034,2341.2,2341.1,0.7872]
[1726210172141,8.46763034,2341.2,2341.1,1.31780953]
[1726210173338,8.46763034,2341.2,2341.1,0.53060953]
[1726210173543,8.85283034,2341.2,2341.1,0.53060953]
[1726210176253,6.62788,2341.2,2341.1,0.53060953]
[1726210176651,0.42718,2340.8,2340.7,0.83438]
[1726210176851,3.2078,2340.8,2340.7,0.8344]
[1726210177154,4.7478,2340.8,2340.7,1.36500953]
[1726210177458,4.7478,2340.8,2340.7,1.74670953]
[1726210177650,5.17498,2340.8,2340.7,1.74670953]
[1726210178950,4.7478,2340.8,2340.7,1.74670953]
[1726210180555,5.17498,2340.8,2340.7,1.74670953]
[1726210183258,1.96718,2340.8,2340.7,1.74670953]
[1726210184261,2.35978,2340.8,2340.7,1.74670953]
[1726210187465,1.9326,2340.8,2340.7,1.74670953]
[1726210187862,2.35978,2340.8,2340.7,1.74670953]
[1726210189356,5.56758,2340.8,2340.7,1.74670953]
[1726210192159,5.56758,2340.8,2340.7,1.36500953]
[1726210192369,5.95738,2340.8,2340.7,1.36500953]
[1726210193961,5.95738,2340.8,2340.7,0.8344]
[1726210195663,12.59816,2340.8,2340.2,2.18720749]
[1726210195863,3.2078,2340.4,2340.3,0.83417]
[1726210196070,0.42724,2340.5,2340.4,0.42725]
[1726210196363,1.54,2340.5,2340.4,0.42725]
[1726210196765,1.96723,2340.5,2340.4,0.42725]
[1726210197569,2.36035,2340.5,2340.4,0.42725]
[1726210198668,1.9331,2340.5,2340.3,0.42726]
[1726210198869,4.7478,2340.4,2340.3,0.42726]
[1726210199068,1.54,2340.4,2340.3,0.42726]
[1726210199274,1.96725,2340.4,2340.3,0.95786953]
[1726210200273,1.54,2340.4,2340.3,0.95786953]
[1726210201566,1.96725,2340.4,2340.3,0.95786953]
[1726210201766,1.54,2340.4,2340.3,0.95786953]
[1726210204773,1.54,2340.4,2340.3,2.02604953]
[1726210204971,1.54,2340.4,2340.3,0.95786953]
[1726210206763,1.78737785,2340.9,2340.8,0.42718]
[1726210206969,1.78737785,2340.9,2340.4,2.13628]
[1726210206970,0.3798,2341.0,2340.9,0.42716]
[1726210207268,2.312,2341.0,2340.5,2.23269]
[1726210207470,1.54,2340.6,2340.5,2.65992]
[1726210207872,1.54,2340.6,2340.5,6.93272]
[1726210208273,1.54,2340.7,2340.6,1.49523]
[1726210208478,1.54,2340.7,2340.6,7.49523]
[1726210208672,1.54,2340.7,2340.6,11.76723]
[1726210209176,1.54,2340.7,2340.6,10.69921]
[1726210209373,0.3798,2341.0,2340.6,10.272]
[1726210209374,1.54,2341.0,2340.6,10.272]
[1726210209578,1.54,2340.8,2340.7,0.4272]
[1726210210079,1.54,2340.8,2340.7,10.6992]
[1726210210769,1.54,2340.8,2340.7,4.6992]
[1726210217579,1.96719,2340.8,2340.5,1.1646]
[1726210217781,1.96719,2340.8,2340.5,1.59183]
[1726210217782,1.54,2340.6,2340.5,1.59183]
[1726210218174,1.54,2340.6,2340.5,5.86463]
[1726210219183,0.3779,2340.8,2340.7,0.4272]
[1726210219391,1.9179,2340.8,2340.7,0.4272]
[1726210219589,1.54,2340.8,2340.7,0.4272]
[1726210222087,1.9405,2340.8,2340.7,0.4272]
[1726210227490,0.4005,2340.8,2340.7,0.4272]
[1726210227688,1.9405,2340.8,2340.7,0.4272]
[1726210230494,2.36768,2340.8,2340.7,0.4272]
[1726210230799,1.9405,2340.8,2340.7,0.4272]
[1726210234697,7.28047,2340.8,2340.4,1.11900749]
[1726210234897,4.7478,2340.6,2340.2,4.198]
[1726210235101,1.54,2340.4,2340.2,0.42727]
[1726210235295,1.96725,2340.4,2340.2,0.42727]
[1726210235796,1.54,2340.4,2340.0,1.31900749]
[1726210235998,0.42725,2340.4,2340.2,0.42727]
[1726210236294,1.54,2340.3,2340.2,0.42727]
[1726210240799,3.37497851,2340.5,2340.3,0.42727]
[1726210241001,3.37497851,2340.5,2340.4,0.42725]
[1726210241301,1.54,2340.4,2340.3,0.42726]
[1726210241601,3.37497851,2340.5,2340.4,0.42725]
[1726210241902,3.37497851,2340.5,2340.2,0.3964]
[1726210241903,5.34221851,2340.5,2340.3,0.42726]
[1726210242104,1.54,2340.4,2340.3,0.42726]
[1726210242609,4.7478,2340.4,2340.3,0.42726]
[1726210245306,5.17505,2340.4,2340.3,0.42726]
[1726210246809,4.7478,2340.4,2340.3,0.42726]
[1726210247910,5.17505,2340.4,2340.3,0.42726]
[1726210250007,7.39922851,2340.4,2340.3,0.42726]
[1726210250411,5.17505,2340.4,2340.3,0.42726]
[1726210250903,4.7478,2340.4,2340.3,0.42726]
[1726210251610,5.17505,2340.4,2340.2,0.7691]
[1726210251810,5.17505,2340.4,2340.3,0.42727]
[1726210257911,0.42731,2340.1,2340.0,0.6273]
[1726210258119,1.96731,2340.2,2340.1,0.4273]
[1726210258310,3.16001,2340.2,2340.1,0.4273]
[1726210259719,0.42731,2340.1,2340.0,0.62731]
[1726210260815,11.76918,2340.1,2340.0,0.2]
[1726210261016,11.76918,2340.1,2339.6,1.67408933]
[1726210261017,0.42737,2339.8,2339.6,0.42739]
[1726210261219,1.1241,2339.7,2339.5,3.63521]
[1726210261426,1.54,2339.6,2339.5,3.2078]
[1726210261921,1.54,2339.6,2339.5,3.63522]
[1726210262516,1.54,2339.6,2339.1,1.11900749]
[1726210262816,0.7508,2339.7,2339.5,0.42742]
[1726210263018,1.17818,2339.7,2339.6,0.4102]
[1726210263211,2.2908,2339.7,2339.6,0.4102]
[1726210263516,2.71818,2339.7,2339.6,0.4102]
[1726210263718,2.2908,2339.7,2339.6,0.8376]
[1726210263925,3.2078,2339.8,2339.7,0.42738]
[1726210264114,3.2078,2339.8,2339.7,0.81628]
[1726210264115,4.7478,2339.8,2339.7,0.81628]
[1726210264315,4.7478,2339.8,2339.7,1.22028]
[1726210266617,0.42738,2339.7,2339.2,2.18767749]
[1726210266814,0.7638,2339.7,2339.6,0.4274]
[1726210267017,1.9324,2339.7,2339.6,0.4274]
[1726210268120,1.54,2339.7,2339.6,0.4274]
[1726210270121,1.54,2339.7,2339.6,5.1091]
[1726210271630,3.2078,2339.8,2339.7,0.42738]
[1726210271829,4.7478,2339.8,2339.7,0.82818]
[1726210272026,4.7478,2339.8,2339.7,1.22548]
[1726210272334,4.7478,2339.8,2339.7,2.29393]
[1726210273938,4.7478,2339.8,2339.7,6.56753]
[1726210275527,0.199,2340.2,2340.1,0.42731]
[1726210275727,1.54,2340.0,2339.9,1.4957]
[1726210276233,1.54,2340.0,2339.9,12.83766]
[1726210276429,1.54,2340.2,2340.1,1.49558]
[1726210276828,1.54,2340.2,2340.1,5.76918]
[1726210277930,1.54,2340.2,2340.1,12.83745]
[1726210278126,1.54,2340.3,2340.2,1.49548]
[1726210278638,1.54,2340.5,2340.4,0.42725]
[1726210279142,3.2078,2340.6,2340.5,0.42723]
[1726210279342,4.7478,2340.6,2340.5,0.42723]
[1726210285340,1.54,2340.6,2340.5,0.42723]
[1726210286138,0.7635,2340.8,2340.7,0.4272]
[1726210286443,2.3035,2340.8,2340.7,0.4272]
[1726210286744,2.3035,2340.8,2340.4,0.4038]
[1726210286948,0.7635,2340.8,2340.7,0.4272]
[1726210287135,2.3035,2340.8,2340.7,0.4272]
[1726210291843,2.73068,2340.8,2340.7,0.4272]
[1726210292047,2.3035,2340.8,2340.7,0.4272]
[1726210296349,2.73068,2340.8,2340.7,0.4272]
[1726210298442,2.3035,2340.8,2340.7,0.4272]
[1726210298642,1.9199,2340.8,2340.7,0.4272]
[1726210298843,0.41,2340.9,2340.8,1.49513]
[1726210299048,1.54,2341.2,2341.1,0.42712]
[1726210299549,1.54,2341.2,2341.1,4.69832]
[1726210299748,1.54,2341.2,2341.1,5.47942]
[1726210299952,3.2078,2341.4,2341.3,0.42709]
[1726210300250,3.5988,2341.4,2341.3,0.42709]
[1726210300642,5.1388,2341.4,2341.3,0.42709]
[1726210300841,1.931,2341.4,2341.3,3.63489]
[1726210301547,1.931,2341.4,2341.3,0.42709]
[1726210301749,1.54,2341.6,2341.3,4.2712]
[1726210301947,1.54,2341.6,2341.5,0.42703]
[1726210302148,4.483,2341.8,2341.6,0.42703]
[1726210302351,4.483,2341.8,2341.5,0.42704]
[1726210302657,4.91,2341.8,2341.5,0.42704]
[1726210304753,4.483,2341.8,2341.2,0.41]
[1726210304953,1.153,2341.8,2341.2,0.41]
[1726210305255,2.32417851,2342.2,2341.9,0.42697]
[1726210305256,3.43,2342.2,2341.9,0.42697]
[1726210305444,1.16,2342.1,2342.0,0.42696]
[1726210305650,0.7664,2342.1,2342.0,0.42696]
[1726210306145,3.33,2342.3,2342.2,0.42692]
[1726210307457,3.7172,2342.5,2342.3,0.4269]
[1726210307856,3.7172,2342.5,2342.4,0.42689]
[1726210311261,4.14408,2342.5,2342.2,0.42691]
[1726210311465,3.33,2342.3,2342.2,0.42691]
[1726210311859,3.33,2342.3,2342.0,3.2078]
[1726210312370,3.33,2342.3,2342.2,0.42692]
[1726210312871,3.33,2342.3,2342.2,4.69652]
[1726210313065,4.14407,2342.5,2342.3,0.4269]
[1726210313270,3.7172,2342.5,2342.3,0.4269]
[1726210313459,4.14407,2342.5,2342.3,0.4269]
[1726210313660,3.7172,2342.5,2342.0,3.2078]
[1726210313866,4.14408,2342.5,2342.2,0.42692]
[1726210314569,3.7172,2342.5,2342.2,0.42692]
[1726210314763,4.14408,2342.5,2342.2,0.42692]
[1726210315068,0.3841,2342.4,2342.2,0.42692]
[1726210315573,0.3841,2342.4,2342.3,0.4269]
[1726210316070,0.3841,2342.4,2342.2,0.42691]
[1726210316373,0.81099,2342.4,2342.2,0.42691]
[1726210316671,0.3841,2342.4,2342.2,0.42691]
[1726210317869,0.3841,2342.4,2341.9,3.6111]
[1726210317870,0.811,2342.4,2341.9,3.6111]
[1726210318071,0.811,2342.4,2342.2,0.42692]
[1726210318770,0.3841,2342.4,2342.2,0.42692]
[1726210319672,0.81099,2342.4,2342.2,0.42692]
[1726210319974,0.81099,2342.4,2342.3,0.4269]
[1726210319975,0.3841,2342.4,2342.3,0.4269]
[1726210320372,4.14408,2342.5,2342.3,0.4269]
[1726210320570,4.14408,2342.5,2342.2,0.42691]
[1726210320765,3.7172,2342.5,2341.9,4.67852]
[1726210321075,3.33,2342.5,2342.3,0.4269]
[1726210321275,0.80595,2342.6,2342.4,0.42689]
[1726210321463,0.3791,2342.6,2342.0,1.06739]
[1726210321668,6.96464,2342.7,2342.4,0.42688]
[1726210321976,6.96464,2342.7,2342.5,0.7709]
[1726210322166,0.42685,2342.6,2342.5,0.7709]
[1726210322569,6.5378,2342.7,2342.5,0.7709]
[1726210322974,0.42685,2342.6,2342.5,0.7709]
[1726210323677,6.5378,2342.7,2342.5,1.19776]
[1726210324271,6.5378,2342.7,2342.6,0.42685]
[1726210324471,6.5378,2342.7,2342.5,0.7709]
[1726210324775,6.5378,2342.7,2342.6,0.42685]
[1726210325272,6.5378,2342.7,2342.5,1.19775]
[1726210325481,6.5378,2342.7,2342.5,0.7709]
[1726210325779,6.5378,2342.7,2342.5,1.19776]
[1726210326073,6.5378,2342.7,2342.6,0.42685]
[1726210326272,6.96463,2342.7,2342.5,0.42686]
[1726210327674,6.5378,2342.7,2342.6,0.42685]
[1726210328273,3.33,2342.7,2342.6,0.42685]
[1726210328578,1.60341,2342.8,2342.6,0.42685]
[1726210328986,0.781,2342.8,2342.7,0.42683]
[1726210336985,2.321,2342.8,2342.7,0.42683]
[1726210338477,2.74781,2342.8,2342.6,0.42684]
[1726210338786,2.74781,2342.8,2342.4,3.6105]
[1726210339284,0.3878,2342.7,2342.6,0.42683]
[1726210343879,5.1356,2342.7,2342.4,0.4027]
[1726210344176,1.54,2342.5,2342.4,0.82959]
[1726210344486,1.54,2342.5,2341.8,1.28078252]
[1726210344487,0.4269,2342.3,2342.1,0.42693]
[1726210344780,1.9145,2342.2,2342.1,0.42693]
[1726210346687,2.34143,2342.2,2342.0,0.42695]
[1726210347385,2.34142,2342.2,2342.0,0.42694]
[1726210348290,1.9145,2342.2,2342.0,0.42694]
[1726210348493,2.34142,2342.2,2342.0,0.42694]
[1726210348786,2.34142,2342.2,2341.7,1.06754]
[1726210348787,0.42697,2342.0,2341.7,0.427]
[1726210349090,2.3243,2341.9,2341.7,0.42701]
[1726210352083,0.7843,2341.9,2341.7,0.42701]
[1726210352882,1.21128,2341.9,2341.6,1.59292]
[1726210353292,0.42703,2341.7,2341.4,3.63486]
[1726210353479,3.33,2341.6,2341.4,0.42706]
[1726210353685,0.4082,2341.5,2341.4,0.42706]
[1726210353885,0.8002,2341.5,2341.3,1.19718]
[1726210354186,3.75707,2341.4,2341.1,0.42711]
[1726210354389,0.42709,2341.3,2341.0,1.60923]
[1726210354892,0.42709,2341.3,2341.1,0.42712]
[1726210355090,0.42709,2341.3,2341.0,1.60923]
[1726210355291,4.15307,2341.4,2341.2,0.4271]
[1726210356383,4.15307,2341.4,2341.1,0.42711]
[1726210357087,4.15307,2341.4,2341.0,1.1821]
[1726210357288,4.15307,2341.4,2341.1,0.42711]
[1726210357791,4.15307,2341.4,2341.0,1.1821]
[1726210357792,4.15307,2341.4,2341.2,0.4271]
[1726210357983,3.726,2341.4,2341.1,0.42711]
[1726210358193,3.726,2341.4,2341.2,0.4271]
[1726210358194,4.15308,2341.4,2341.2,0.4271]
[1726210359993,0.8002,2341.5,2341.1,3.2078]
[1726210360292,0.8002,2341.5,2341.4,0.42707]
[1726210364088,0.3934,2341.7,2341.4,0.42707]
[1726210364294,0.7813,2341.7,2341.5,0.42704]
[1726210364701,1.20832,2341.7,2341.5,0.42704]
[1726210366191,0.7813,2341.7,2341.5,0.42704]
[1726210366392,1.20833,2341.7,2341.5,0.42704]
[1726210369299,1.20833,2341.7,2341.6,0.42703]
[1726210369503,1.20833,2341.7,2341.4,0.4098]
[1726210369504,0.7813,2341.7,2341.4,0.4098]
[1726210369803,1.20832,2341.7,2341.5,0.42704]
[1726210370003,0.7813,2341.7,2341.6,0.42703]
[1726210370200,1.20832,2341.7,2341.5,0.42704]
[1726210373398,1.20832,2341.7,2341.5,0.42705]
[1726210373604,0.3879,2341.7,2341.6,0.83213]
[1726210373796,0.81491,2341.7,2341.6,0.4051]
[1726210374010,0.3879,2341.7,2341.6,0.4051]
[1726210374199,1.9279,2341.7,2341.6,0.4051]
[1726210374802,2.35491,2341.7,2341.6,0.4051]
[1726210375100,1.9279,2341.7,2341.6,0.4051]
[1726210375492,1.9279,2341.7,2341.6,0.83213]
[1726210380807,1.9279,2341.7,2341.6,0.42703]
[1726210381907,0.3879,2341.7,2341.6,0.42703]
[1726210382106,2.3004,2341.9,2341.5,1.06763]
[1726210382308,2.3004,2341.9,2341.8,0.427]
[1726210382309,0.7604,2341.9,2341.8,0.427]
[1726210383205,2.3004,2341.9,2341.8,0.427]
[1726210384811,2.3004,2341.9,2341.7,0.427]
[1726210385112,1.54,2341.8,2341.7,0.427]
[1726210385310,1.54,2341.8,2341.4,4.4075]
[1726210385311,1.54,2341.8,2341.6,0.42702]
[1726210385714,0.4073,2341.7,2341.6,0.42702]
[1726210386216,0.4073,2341.7,2341.6,4.69742]
[1726210386811,1.54,2341.8,2341.7,0.42701]
[1726210387010,2.3004,2341.9,2341.8,0.427]
[1726210387618,1.9104,2341.9,2341.8,0.427]
[1726210389722,1.9104,2341.9,2341.4,4.4075]
[1726210389921,1.54,2341.7,2341.6,0.42703]
[1726210391322,1.54,2341.7,2341.4,1.1997]
[1726210391520,2.6716,2341.6,2341.5,0.42705]
[1726210392120,3.09864,2341.6,2341.4,1.62676]
[1726210392320,2.6716,2341.6,2341.1,5.39461749]
[1726210392522,3.09863,2341.6,2341.4,0.42706]
[1726210394522,2.6716,2341.6,2341.5,0.42705]
[1726210396019,3.09864,2341.6,2341.4,0.42706]
[1726210396625,3.09864,2341.6,2341.5,0.42705]
[1726210397922,5.32281851,2341.6,2341.4,0.42705]
[1726210398121,5.32281851,2341.6,2341.5,0.42705]
[1726210402629,4.89577851,2341.6,2341.5,0.42705]
[1726210402831,2.6716,2341.6,2341.5,0.42705]
[1726210403028,2.2842,2341.6,2341.5,0.42705]
[1726210404236,3.76417851,2341.7,2341.6,0.42703]
[1726210404734,3.76417851,2341.7,2341.5,0.42704]
[1726210404931,3.76417851,2341.7,2341.4,1.11900749]
[1726210404932,3.76417851,2341.7,2341.6,0.3771]
[1726210405127,3.76417851,2341.7,2341.6,0.80413]
[1726210405329,3.76417851,2341.7,2341.6,0.3771]
[1726210405733,3.76417851,2341.7,2341.6,0.7833]
[1726210405934,3.76417851,2341.7,2341.6,1.21033]
[1726210406935,2.22417851,2341.7,2341.6,1.21033]
[1726210407129,1.9426,2341.8,2341.7,0.42701]
[1726210407327,4.17129389,2341.8,2341.7,0.81681]
[1726210407527,4.17138635,2341.8,2341.7,0.81681]
[1726210407736,1.9426,2341.8,2341.7,0.81681]
[1726210408430,1.9426,2341.8,2341.7,0.3898]
[1726210408631,1.9426,2341.8,2341.6,1.21032]
[1726210408836,2.22873591,2341.7,2341.6,1.21032]
[1726210409832,3.76873591,2341.7,2341.6,0.42702]
[1726210410137,4.14093591,2341.7,2341.6,0.42702]
[1726210410838,4.14093591,2341.7,2341.6,0.42703]
[1726210419540,4.14179171,2341.7,2341.6,0.42703]
[1726210419744,1.9122,2341.7,2341.6,0.42703]
[1726210420149,4.14177743,2341.7,2341.6,0.42703]
[1726210420348,4.56890172,2341.7,2341.5,1.93584749]
[1726210420547,2.22968172,2341.6,2341.5,0.42704]
[1726210423553,1.9122,2341.7,2341.6,0.42703]
[1726210424349,4.1420881,2341.7,2341.6,0.42703]
[1726210424656,2.2298881,2341.7,2341.6,0.42703]
[1726210424844,2.6324881,2341.8,2341.7,0.42701]
[1726210425051,0.4026,2341.8,2341.7,5.15551749]
[1726210425248,0.4026,2341.8,2341.7,2.35631749]
[1726210425249,2.6324881,2341.8,2341.7,2.35631749]
[1726210425453,2.2298881,2341.9,2341.8,0.427]
[1726210425652,2.2298881,2341.9,2341.8,0.8023]
[1726210425846,2.22984996,2341.9,2341.8,0.8023]
[1726210426053,4.70777656,2342.0,2341.8,0.8023]
[1726210426755,4.70777656,2342.0,2341.8,0.3753]
[1726210427058,4.70777656,2342.0,2341.8,0.80228]
[1726210427652,2.22989438,2341.9,2341.8,0.80228]
[1726210428054,4.70777656,2342.0,2341.8,0.80228]
[1726210428246,4.70777656,2342.0,2341.9,0.42698]
[1726210428761,4.70777656,2342.0,2341.8,0.80228]
[1726210428955,2.22978703,2341.9,2341.8,0.80228]
[1726210429861,3.76978703,2341.9,2341.8,0.80228]
[1726210433259,4.75006656,2341.9,2341.5,1.49680749]
[1726210433465,4.15408652,2341.8,2341.5,1.49680749]
[1726210433761,0.401,2341.7,2341.6,0.42703]
[1726210434355,0.401,2341.7,2341.6,4.69743]
[1726210435953,2.63048652,2341.7,2341.6,4.69743]
[1726210436265,0.401,2341.7,2341.6,4.69743]
[1726210436560,4.15408652,2341.8,2341.7,0.42701]
[1726210438059,4.1540174,2341.8,2341.7,0.42701]
[1726210438363,2.6140174,2341.8,2341.7,0.42701]
[1726210444368,0.3846,2341.8,2341.7,0.42701]
[1726210445572,2.99211,2341.8,2341.4,1.51460749]
[1726210445867,2.99211,2341.8,2341.4,1.94167749]
[1726210445868,1.54,2341.5,2341.4,1.94167749]
[1726210446064,3.77008194,2341.5,2341.4,1.94167749]
[1726210446264,4.92538194,2341.5,2341.4,1.94167749]
[1726210447877,4.92538194,2341.5,2341.4,1.54607749]
[1726210448376,4.92538194,2341.5,2341.4,0.42707]
[1726210450171,5.35243194,2341.5,2341.4,0.42707]
[1726210451968,4.92538194,2341.5,2341.4,0.42707]
[1726210452176,5.35243194,2341.5,2341.4,0.42707]
[1726210453069,3.38538194,2341.5,2341.4,0.42707]
[1726210453461,3.00998194,2341.5,2341.4,0.42707]
[1726210454474,4.54998194,2341.5,2341.4,0.42707]
[1726210457873,4.54998194,2341.5,2341.2,2.29600749]
[1726210457874,4.54998194,2341.5,2341.2,1.88740749]
[1726210458077,1.54,2341.3,2341.2,0.42709]
[1726210458577,1.9176,2341.3,2341.2,0.42709]
[1726210460670,2.23008194,2341.4,2341.3,0.42709]
[1726210460978,2.74696,2341.5,2341.4,0.42707]
[1726210460979,4.92758194,2341.5,2341.4,0.42707]
[1726210461179,4.92758194,2341.5,2341.1,1.11900749]
[1726210461380,5.35463194,2341.5,2341.3,0.42708]
[1726210461677,3.38758194,2341.5,2341.4,0.42707]